fUST/lending_fUST_20250704
["ID","MTS","AMOUNT","RATE_DAILY","PERIOD"]
[369581788,1751628643408,-375.28877468,0.00016438,2]
[369581871,1751628645696,-84.71122532,0.00016438,2]
[369581872,1751628645705,-460.0,0.00016438,2]
[369581873,1751628645714,-460.0,0.00016438,2]
[369581874,1751628645723,-461.69823213,0.00016438,2]
[369581875,1751628645733,-460.0,0.00016438,2]
[369581876,1751628645742,-460.0,0.00016438,2]
[369581877,1751628645752,-460.0,0.00016438,2]
[369581878,1751628645761,-460.0,0.00016438,2]
[369581879,1751628645770,-460.0,0.00016438,2]
[369581880,1751628645779,-151.0,0.00016438,2]
[369581881,1751628645788,-151.0,0.00016438,2]
[369581882,1751628645949,-151.0,0.00016438,2]
[369581883,1751628645958,-460.0,0.00016438,2]
[369581884,1751628645968,-317.85388128,0.00016438,2]
[369581885,1751628645980,-142.14611872,0.00016438,2]
[369581886,1751628645989,-412.767336,0.00016438,2]
[369581887,1751628645999,-412.767336,0.00016438,2]
[369581888,1751628646008,-151.0,0.00016438,2]
[369581889,1751628646017,-151.0,0.00016438,2]
[369581890,1751628646027,-242.675344,0.00016438,2]
[369581891,1751628646036,-460.0,0.00016438,2]
[369581892,1751628646046,-151.0,0.00016438,2]
[369581894,1751628646056,-460.0,0.00016438,2]
[369581896,1751628646065,-460.0,0.00016438,2]
[369581898,1751628646074,-460.0,0.00016438,2]
[369581900,1751628646083,-407.86819657,0.00016438,2]
[369581902,1751628646092,-151.0,0.00016438,2]
[369581904,1751628646101,-151.0,0.00016438,2]
[369581906,1751628646111,-460.0,0.00016438,2]
[369581907,1751628646121,-151.0,0.00016438,2]
[369581908,1751628646130,-151.0,0.00016438,2]
[369581909,1751628646140,-460.0,0.00016438,2]
[369581910,1751628646149,-380.0,0.00016438,2]
[369581911,1751628646158,-464.88762049,0.00016438,2]
[369581912,1751628646168,-460.0,0.00016438,2]
[369581913,1751628646178,-463.37645513,0.00016438,2]
[369581914,1751628646188,-460.0,0.00016438,2]
[369581915,1751628646197,-500.0,0.00016438,2]
[369581916,1751628646206,-364.66632685,0.00016438,2]
[369581917,1751628646216,-500.0,0.00016438,2]
[369581918,1751628646225,-460.0,0.00016438,2]
[369581919,1751628646235,-375.38774764,0.00016438,2]
[369581920,1751628646244,-460.0,0.00016438,2]
[369581921,1751628646253,-460.0,0.00016438,2]
[369581922,1751628646263,-390.48993936,0.00016438,2]
[369581923,1751628646273,-460.0,0.00016438,2]
[369581924,1751628646283,-460.0,0.00016438,2]
[369581925,1751628646293,-460.0,0.00016438,2]
[369581926,1751628646303,-460.0,0.00016438,2]
[369581927,1751628646313,-460.0,0.00016438,2]
[369581928,1751628646322,-460.0,0.00016438,2]
[369581929,1751628646332,-251.70973992,0.00016438,2]
[369581930,1751628646342,-252.20367881,0.00016438,2]
[369581931,1751628646352,-460.0,0.00016438,2]
[369581932,1751628646362,-460.0,0.00016438,2]
[369581933,1751628646371,-356.1759115,0.00016438,2]
[369581934,1751628646380,-460.0,0.00016438,2]
[369581935,1751628646390,-460.0,0.00016438,2]
[369581936,1751628646399,-460.0,0.00016438,2]
[369581937,1751628646409,-470.10525248,0.00016438,2]
[369581938,1751628646419,-460.0,0.00016438,2]
[369581939,1751628646428,-460.0,0.00016438,2]
[369581940,1751628646438,-460.0,0.00016438,2]
[369581941,1751628646447,-460.0,0.00016438,2]
[369581942,1751628646457,-412.22587059,0.00016438,2]
[369581943,1751628646469,-511.43301409,0.00016438,2]
[369581944,1751628646479,-301.42939823,0.00016438,2]
[369581945,1751628646488,-460.0,0.00016438,2]
[369581946,1751628646499,-460.0,0.00016438,2]
[369581947,1751628646509,-460.0,0.00016438,2]
[369581948,1751628646519,-460.0,0.00016438,2]
[369581949,1751628646529,-460.0,0.00016438,2]
[369581950,1751628646539,-442.09480305,0.00016438,2]
[369581951,1751628646549,-460.0,0.00016438,2]
[369581952,1751628646558,-151.0,0.00016438,2]
[369581953,1751628646567,-407.93992733,0.00016438,2]
[369581954,1751628646577,-460.0,0.00016438,2]
[369581955,1751628646587,-466.10864289,0.00016438,2]
[369581956,1751628646597,-460.0,0.00016438,2]
[369581957,1751628646606,-281.96800708,0.00016438,2]
[369581958,1751628646615,-460.0,0.00016438,2]
[369581959,1751628646625,-460.0,0.00016438,2]
[369581960,1751628646635,-460.0,0.00016438,2]
[369581961,1751628646644,-504.35369056,0.00016438,2]
[369581962,1751628646653,-460.0,0.00016438,2]
[369581963,1751628646663,-460.0,0.00016438,2]
[369581964,1751628646672,-151.0,0.00016438,2]
[369581965,1751628646681,-151.0,0.00016438,2]
[369581966,1751628646691,-151.0,0.00016438,2]
[369581967,1751628646700,-151.0,0.00016438,2]
[369581968,1751628646710,-460.0,0.00016438,2]
[369581969,1751628646719,-882.0,0.00016438,2]
[369581970,1751628646729,-460.0,0.00016438,2]
[369581971,1751628646738,-460.0,0.00016438,2]
[369581972,1751628646747,-460.0,0.00016438,2]
[369581973,1751628646756,-460.0,0.00016438,2]
[369581974,1751628646765,-398.50512151,0.00016438,2]
[369581975,1751628646779,-61.49487849,0.00016438,2]
[369581976,1751628646789,-738.66,0.00016438,2]
[369581977,1751628646798,-500.0,0.00016438,2]
[369581978,1751628646808,-751.39,0.00016438,2]
[369581979,1751628646817,-460.0,0.00016438,2]
[369581980,1751628646827,-165.58508725,0.00016438,2]
[369581981,1751628646837,-460.0,0.00016438,2]
[369581982,1751628646846,-460.0,0.00016438,2]
[369581983,1751628646857,-460.0,0.00016438,2]
[369581984,1751628646866,-151.0,0.00016438,2]
[369581985,1751628646875,-151.0,0.00016438,2]
[369581986,1751628646885,-460.0,0.00016438,2]
[369581988,1751628646894,-460.0,0.00016438,2]
[369581990,1751628646903,-151.606578,0.00016438,2]
[369581992,1751628646912,-460.0,0.00016438,2]
[369581994,1751628646920,-460.0,0.00016438,2]
[369581995,1751628646930,-460.0,0.00016438,2]
[369581996,1751628646939,-151.0,0.00016438,2]
[369581997,1751628646949,-151.0,0.00016438,2]
[369581998,1751628646958,-460.0,0.00016438,2]
[369581999,1751628646968,-202.431484,0.00016438,2]
[369582000,1751628646977,-460.0,0.00016438,2]
[369582001,1751628646987,-460.0,0.00016438,2]
[369582002,1751628646996,-386.85854873,0.00016438,2]
[369582003,1751628647005,-460.0,0.00016438,2]
[369582004,1751628647014,-460.0,0.00016438,2]
[369582005,1751628647023,-460.0,0.00016438,2]
[369582006,1751628647032,-460.0,0.00016438,2]
[369582007,1751628647041,-460.0,0.00016438,2]
[369582008,1751628647051,-460.0,0.00016438,2]
[369582009,1751628647060,-460.0,0.00016438,2]
[369582010,1751628647069,-460.0,0.00016438,2]
[369582011,1751628647078,-460.0,0.00016438,2]
[369582012,1751628647088,-460.0,0.00016438,2]
[369582013,1751628647097,-460.0,0.00016438,2]
[369582014,1751628647107,-247.44092751,0.00016438,2]
[369582015,1751628647116,-460.0,0.00016438,2]
[369582016,1751628647126,-460.0,0.00016438,2]
[369582017,1751628647136,-151.0,0.00016438,2]
[369582018,1751628647145,-151.0,0.00016438,2]
[369582019,1751628647154,-460.0,0.00016438,2]
[369582020,1751628647164,-460.0,0.00016438,2]
[369582021,1751628647173,-460.0,0.00016438,2]
[369582022,1751628647182,-460.0,0.00016438,2]
[369582023,1751628647192,-224.87899382,0.00016438,2]
[369582024,1751628647201,-503.34554303,0.00016438,2]
[369582025,1751628647211,-457.42018985,0.00016438,2]
[369582026,1751628647220,-472.2556711,0.00016438,2]
[369582027,1751628647229,-460.0,0.00016438,2]
[369582028,1751628647238,-460.0,0.00016438,2]
[369582029,1751628647248,-460.0,0.00016438,2]
[369582030,1751628647257,-460.0,0.00016438,2]
[369582031,1751628647267,-460.0,0.00016438,2]
[369582032,1751628647276,-460.0,0.00016438,2]
[369582033,1751628647285,-460.0,0.00016438,2]
[369582034,1751628647294,-460.0,0.00016438,2]
[369582035,1751628647304,-460.0,0.00016438,2]
[369582036,1751628647313,-151.0,0.00016438,2]
[369582037,1751628647322,-151.0,0.00016438,2]
[369582038,1751628647332,-460.0,0.00016438,2]
[369582039,1751628647341,-460.0,0.00016438,2]
[369582040,1751628647351,-151.0,0.00016438,2]
[369582041,1751628647360,-151.0,0.00016438,2]
[369582042,1751628647369,-253.41595812,0.00016438,2]
[369582043,1751628647383,-215.4275785,0.00016438,2]
[369582044,1751628647392,-166.50060603,0.00016438,2]
[369582046,1751628937387,606.913506,0.00013699,2]
[369582047,1751629116728,156.8365889,7.5e-07,2]
[369582048,1751629116829,156.8365889,7.5e-07,2]
[369582049,1751629116934,156.8365889,7.5e-07,2]
[369582050,1751629117024,156.8365889,7.5e-07,2]
[369582051,1751629117135,156.8365889,7.5e-07,2]
[369582052,1751629117235,156.8365889,7.5e-07,2]
[369582053,1751629117334,156.8365889,7.5e-07,2]
[369582054,1751629117418,156.8365889,7.5e-07,2]
[369582055,1751629126836,5000.0,0.0001501,2]
[369582056,1751629142764,5000.0,0.0001501,2]
[369582057,1751629158282,910.84334765,0.0001501,2]
[369582059,1751629227101,10000.0,0.00024658,60]
[369582060,1751629382481,301.34750613,0.0001611,6]
[369582061,1751629384293,8852.46,0.00024658,60]
[369582062,1751629417956,156.83658887,7.5e-07,2]
[369582063,1751629495225,3170.31642526,0.0001501,2]
[369582081,1751629832158,-300.0,0.00015167,2]
[369582083,1751629832168,-1200.0,0.00015167,2]
[369582085,1751629832178,-91.00726631,0.00015168,2]
[369582109,1751629838020,-1545.96240079,0.00015168,2]
[369582111,1751629838075,-13502.65776089,0.00015168,2]
[369582112,1751629838087,-9760.37257201,0.00015168,2]
[369582113,1751629838098,-171.750491,0.00015173,2]
[369582114,1751629838111,-495.0,0.00015638,2]
[369582115,1751629838122,-168.0,0.00015703,2]
[369582116,1751629838133,-209.0,0.00015736,2]
[369582117,1751629838143,-536.38589757,0.0001612,2]
[369582118,1751629838153,-207.4,0.0001621,2]
[369582119,1751629838163,-506.835946,0.00016218,2]
[369582120,1751629838173,-165.70830881,0.00016219,2]
[369582121,1751629838187,-11.01306163,0.00016219,2]
[369582122,1751629838197,-1350.53075699,0.0001622,2]
[369582123,1751629838209,-792.99451589,0.0001622,2]
[369582124,1751629838220,-1163.84060701,0.0001622,2]
[369582125,1751629838238,-5649.70925762,0.0001622,2]
[369582126,1751629838251,-5835.78435003,0.0001622,2]
[369582127,1751629838263,-552.36930856,0.0001622,2]
[369582175,1751629840235,-1013.9836,0.0001622,2]
[369582178,1751629840246,-440.22699263,0.0001622,2]
[369582180,1751629840258,-1316.39270049,0.0001622,2]
[369582182,1751629840269,-2816.49324483,0.0001622,2]
[369582184,1751629840281,-380.2112442,0.0001622,2]
[369582245,1751629840865,-527.69100549,0.0001622,2]
[369582462,1751629843025,-11159.77241626,0.0001622,2]
[369582464,1751629843035,-200.0,0.0001622,10]
[369582466,1751629843044,-200.0,0.0001622,10]
[369582468,1751629843054,-200.0,0.0001622,10]
[369582470,1751629843064,-200.0,0.0001622,10]
[369582472,1751629843074,-200.0,0.0001622,10]
[369582474,1751629843084,-200.0,0.0001622,10]
[369582476,1751629843094,-200.0,0.0001622,10]
[369582478,1751629843104,-200.0,0.0001622,10]
[369582480,1751629843114,-200.0,0.0001622,10]
[369582483,1751629843125,-201.87749838,0.00016237,2]
[369582485,1751629843135,-209.0,0.00016258,2]
[369582487,1751629843144,-345.92424812,0.00016338,2]
[369582489,1751629843153,-3078.54825721,0.00016338,2]
[369582491,1751629843163,-485.66773148,0.00016388,2]
[369582493,1751629843172,-500.0,0.00016437,2]
[369582494,1751629843182,-500.0,0.00016437,2]
[369582497,1751629843192,-500.0,0.00016437,2]
[369582499,1751629843201,-500.0,0.00016437,2]
[369582501,1751629843211,-500.0,0.00016437,2]
[369582503,1751629843220,-500.0,0.00016437,2]
[369582505,1751629843229,-500.0,0.00016437,2]
[369582507,1751629843239,-500.0,0.00016437,2]
[369582509,1751629843248,-500.0,0.00016437,2]
[369582511,1751629843257,-500.0,0.00016437,2]
[369582513,1751629843268,-500.0,0.00016437,2]
[369582515,1751629843278,-500.0,0.00016437,2]
[369582517,1751629843288,-500.0,0.00016437,2]
[369582519,1751629843297,-500.0,0.00016437,2]
[369582521,1751629843306,-500.0,0.00016437,2]
[369582523,1751629843315,-500.0,0.00016437,2]
[369582525,1751629843324,-500.0,0.00016437,2]
[369582527,1751629843334,-500.0,0.00016437,2]
[369582529,1751629843343,-500.0,0.00016437,2]
[369582531,1751629843353,-271.0318687,0.00016437,2]
[369582533,1751629843363,-500.0,0.00016437,2]
[369582535,1751629843372,-500.0,0.00016437,2]
[369582537,1751629843382,-500.0,0.00016437,2]
[369582554,1751629843537,-500.0,0.00016437,2]
[369582556,1751629843548,-500.0,0.00016437,2]
[369582558,1751629843558,-492.03,0.00016437,2]
[369582560,1751629843567,-460.0,0.00016438,2]
[369582562,1751629843577,-175.295048,0.00016438,2]
[369582564,1751629843587,-460.0,0.00016438,2]
[369582566,1751629843597,-329.07869915,0.00016438,2]
[369582568,1751629843606,-457.59336901,0.00016438,2]
[369582570,1751629843616,-442.80731982,0.00016438,2]
[369582572,1751629843625,-460.0,0.00016438,2]
[369582574,1751629843634,-151.0,0.00016438,2]
[369582576,1751629843644,-460.0,0.00016438,2]
[369582578,1751629843654,-151.0,0.00016438,2]
[369582580,1751629843663,-151.0,0.00016438,2]
[369582582,1751629843673,-461.72693578,0.00016438,2]
[369582584,1751629843683,-400.0,0.00016438,2]
[369582586,1751629843692,-460.0,0.00016438,2]
[369582588,1751629843702,-460.0,0.00016438,2]
[369582590,1751629843711,-460.81458503,0.00016438,2]
[369582592,1751629843720,-460.0,0.00016438,2]
[369582594,1751629843730,-460.0,0.00016438,2]
[369582596,1751629843739,-460.0,0.00016438,2]
[369582598,1751629843749,-460.0,0.00016438,2]
[369582600,1751629843758,-460.0,0.00016438,2]
[369582602,1751629843768,-460.0,0.00016438,2]
[369582604,1751629843778,-460.0,0.00016438,2]
[369582606,1751629843787,-460.00001425,0.00016438,2]
[369582608,1751629843797,-153.696136,0.00016438,2]
[369582610,1751629843807,-460.0,0.00016438,2]
[369582612,1751629843816,-151.0,0.00016438,2]
[369582614,1751629843826,-151.0,0.00016438,2]
[369582616,1751629843835,-151.0,0.00016438,2]
[369582618,1751629843845,-151.0,0.00016438,2]
[369582620,1751629843854,-151.0,0.00016438,2]
[369582622,1751629843863,-151.0,0.00016438,2]
[369582624,1751629843873,-460.0,0.00016438,2]
[369582626,1751629843882,-460.0,0.00016438,2]
[369582628,1751629843892,-460.0,0.00016438,2]
[369582630,1751629843902,-151.0,0.00016438,2]
[369582632,1751629843914,-151.0,0.00016438,2]
[369582634,1751629843923,-460.0,0.00016438,2]
[369582636,1751629843934,-460.0,0.00016438,2]
[369582638,1751629843943,-500.0,0.00016438,2]
[369582640,1751629843953,-500.0,0.00016438,2]
[369582642,1751629843964,-527.15577597,0.00016438,2]
[369582644,1751629843974,-460.0,0.00016438,2]
[369582646,1751629843984,-460.0,0.00016438,2]
[369582648,1751629843994,-460.0,0.00016438,2]
[369582650,1751629844004,-151.0,0.00016438,2]
[369582652,1751629844014,-228.281286,0.00016438,2]
[369582654,1751629844024,-461.63516726,0.00016438,2]
[369582656,1751629844033,-460.0,0.00016438,2]
[369582658,1751629844043,-460.0,0.00016438,2]
[369582660,1751629844053,-524.9954333,0.00016438,2]
[369582662,1751629844063,-460.0,0.00016438,2]
[369582664,1751629844072,-460.0,0.00016438,2]
[369582666,1751629844082,-460.0,0.00016438,2]
[369582668,1751629844092,-460.0,0.00016438,2]
[369582670,1751629844102,-151.0,0.00016438,2]
[369582672,1751629844112,-151.0,0.00016438,2]
[369582674,1751629844121,-151.0,0.00016438,2]
[369582676,1751629844131,-461.86702356,0.00016438,2]
[369582678,1751629844140,-151.0,0.00016438,2]
[369582680,1751629844150,-151.0,0.00016438,2]
[369582682,1751629844160,-151.0,0.00016438,2]
[369582684,1751629844170,-460.0,0.00016438,2]
[369582686,1751629844179,-460.0,0.00016438,2]
[369582688,1751629844189,-151.0,0.00016438,2]
[369582690,1751629844200,-151.0,0.00016438,2]
[369582692,1751629844210,-285.556486,0.00016438,2]
[369582694,1751629844219,-460.0,0.00016438,2]
[369582696,1751629844228,-460.0,0.00016438,2]
[369582698,1751629844238,-460.0,0.00016438,2]
[369582700,1751629844248,-602.91,0.00016438,2]
[369582702,1751629844257,-460.0,0.00016438,2]
[369582704,1751629844267,-151.0,0.00016438,2]
[369582706,1751629844276,-151.0,0.00016438,2]
[369582708,1751629844286,-460.0,0.00016438,2]
[369582710,1751629844296,-460.0,0.00016438,2]
[369582712,1751629844305,-460.0,0.00016438,2]
[369582714,1751629844316,-460.0,0.00016438,2]
[369582716,1751629844325,-845.25,0.00016438,2]
[369582718,1751629844334,-245.144213,0.00016438,2]
[369582720,1751629844345,-463.42816069,0.00016438,2]
[369582722,1751629844355,-720.08,0.00016438,2]
[369582724,1751629844364,-468.57,0.00016438,2]
[369582726,1751629844374,-460.0,0.00016438,2]
[369582728,1751629844384,-460.0,0.00016438,2]
[369582730,1751629844393,-208.49315024,0.00016438,2]
[369582732,1751629844403,-707.88,0.00016438,2]
[369582734,1751629844412,-460.0,0.00016438,2]
[369582736,1751629844422,-151.0,0.00016438,2]
[369582738,1751629844431,-460.0,0.00016438,2]
[369582740,1751629844441,-460.0,0.00016438,2]
[369582742,1751629844450,-151.0,0.00016438,2]
[369582744,1751629844459,-151.0,0.00016438,2]
[369582746,1751629844469,-151.0,0.00016438,2]
[369582748,1751629844479,-151.0,0.00016438,2]
[369582750,1751629844489,-151.0,0.00016438,2]
[369582752,1751629844498,-151.0,0.00016438,2]
[369582754,1751629844507,-151.0,0.00016438,2]
[369582756,1751629844517,-460.0,0.00016438,2]
[369582758,1751629844527,-460.0,0.00016438,2]
[369582760,1751629844537,-151.0,0.00016438,2]
[369582762,1751629844547,-151.0,0.00016438,2]
[369582764,1751629844557,-151.0,0.00016438,2]
[369582766,1751629844567,-151.0,0.00016438,2]
[369582768,1751629844576,-151.0,0.00016438,2]
[369582770,1751629844585,-151.0,0.00016438,2]
[369582772,1751629844594,-151.0,0.00016438,2]
[369582774,1751629844604,-165.298272,0.00016438,2]
[369582776,1751629844613,-460.0,0.00016438,2]
[369582778,1751629844623,-460.0,0.00016438,2]
[369582780,1751629844633,-460.0,0.00016438,2]
[369582782,1751629844643,-460.0,0.00016438,2]
[369582784,1751629844652,-151.0,0.00016438,2]
[369582786,1751629844662,-151.0,0.00016438,2]
[369582788,1751629844671,-151.0,0.00016438,2]
[369582790,1751629844681,-192.83473,0.00016438,2]
[369582792,1751629844690,-500.0,0.00016438,2]
[369582794,1751629844699,-863.09,0.00016438,2]
[369582796,1751629844709,-672.19,0.00016438,2]
[369582798,1751629844719,-460.0,0.00016438,2]
[369582800,1751629844728,-460.0,0.00016438,2]
[369582802,1751629844737,-460.40574186,0.00016438,2]
[369582804,1751629844747,-930.93,0.00016438,2]
[369582806,1751629844756,-460.0,0.00016438,2]
[369582808,1751629844766,-1029.12,0.00016438,2]
[369582811,1751629844775,-460.0,0.00016438,2]
[369582813,1751629844785,-151.0,0.00016438,2]
[369582815,1751629844794,-151.0,0.00016438,2]
[369582817,1751629844803,-151.0,0.00016438,2]
[369582818,1751629844812,-151.0,0.00016438,2]
[369582821,1751629844822,-151.0,0.00016438,2]
[369582823,1751629844832,-151.0,0.00016438,2]
[369582825,1751629844841,-151.0,0.00016438,2]
[369582827,1751629844850,-151.0,0.00016438,2]
[369582829,1751629844860,-460.0,0.00016438,2]
[369582831,1751629844868,-460.0,0.00016438,2]
[369582833,1751629844877,-151.0,0.00016438,2]
[369582835,1751629844887,-460.0,0.00016438,2]
[369582837,1751629844896,-151.0,0.00016438,2]
[369582839,1751629844909,-151.0,0.00016438,2]
[369582841,1751629844919,-151.0,0.00016438,2]
[369582843,1751629844928,-151.0,0.00016438,2]
[369582845,1751629844937,-151.0,0.00016438,2]
[369582846,1751629844947,-151.0,0.00016438,2]
[369582848,1751629844957,-151.0,0.00016438,2]
[369582850,1751629844966,-151.0,0.00016438,2]
[369582852,1751629844976,-151.0,0.00016438,2]
[369582854,1751629844986,-270.30772,0.00016438,2]
[369582856,1751629844995,-460.0,0.00016438,2]
[369582858,1751629845005,-460.0,0.00016438,2]
[369582860,1751629845015,-460.0,0.00016438,2]
[369582862,1751629845024,-460.0,0.00016438,2]
[369582864,1751629845033,-460.0,0.00016438,2]
[369582866,1751629845043,-460.0,0.00016438,2]
[369582868,1751629845052,-460.0,0.00016438,2]
[369582870,1751629845061,-460.0,0.00016438,2]
[369582872,1751629845070,-460.0,0.00016438,2]
[369582874,1751629845080,-460.0,0.00016438,2]
[369582876,1751629845089,-460.0,0.00016438,2]
[369582878,1751629845099,-500.0,0.00016438,2]
[369582880,1751629845109,-460.0,0.00016438,2]
[369582882,1751629845118,-460.0,0.00016438,2]
[369582883,1751629845127,-460.0,0.00016438,2]
[369582884,1751629845137,-460.0,0.00016438,2]
[369582885,1751629845147,-460.0,0.00016438,2]
[369582886,1751629845157,-1525.74,0.00016438,2]
[369582887,1751629845166,-1899.08,0.00016438,2]
[369582888,1751629845175,-460.0,0.00016438,2]
[369582889,1751629845185,-460.0,0.00016438,2]
[369582890,1751629845194,-1516.65,0.00016438,2]
[369582891,1751629845203,-726.64,0.00016438,2]
[369582892,1751629845216,-657.86,0.00016438,2]
[369582893,1751629845225,-460.0,0.00016438,2]
[369582894,1751629845235,-460.0,0.00016438,2]
[369582895,1751629845244,-460.0,0.00016438,2]
[369582896,1751629845254,-460.0,0.00016438,2]
[369582897,1751629845263,-1546.81,0.00016438,2]
[369582898,1751629845273,-640.18,0.00016438,2]
[369582900,1751629845282,-479.93,0.00016438,2]
[369582902,1751629845292,-460.0,0.00016438,2]
[369582904,1751629845301,-759.6,0.00016438,2]
[369582906,1751629845310,-3200.7,0.00016438,2]
[369582908,1751629845321,-151.0,0.00016438,2]
[369582910,1751629845330,-151.0,0.00016438,2]
[369582912,1751629845339,-151.0,0.00016438,2]
[369582914,1751629845349,-151.0,0.00016438,2]
[369582916,1751629845358,-151.0,0.00016438,2]
[369582918,1751629845368,-151.0,0.00016438,2]
[369582920,1751629845377,-151.0,0.00016438,2]
[369582922,1751629845386,-151.0,0.00016438,2]
[369582924,1751629845396,-151.0,0.00016438,2]
[369582926,1751629845407,-460.0,0.00016438,2]
[369582927,1751629845416,-3124.32,0.00016438,2]
[369582929,1751629845426,-460.0,0.00016438,2]
[369582931,1751629845435,-460.0,0.00016438,2]
[369582933,1751629845444,-1075.24,0.00016438,2]
[369582935,1751629845454,-888.46,0.00016438,2]
[369582937,1751629845463,-460.0,0.00016438,2]
[369582939,1751629845473,-283.89193569,0.00016438,2]
[369582941,1751629845482,-460.0,0.00016438,2]
[369582943,1751629845491,-460.0,0.00016438,2]
[369582945,1751629845501,-460.0,0.00016438,2]
[369582947,1751629845510,-460.0,0.00016438,2]
[369582949,1751629845519,-870.01,0.00016438,2]
[369582951,1751629845529,-460.0,0.00016438,2]
[369582953,1751629845538,-460.0,0.00016438,2]
[369582955,1751629845549,-460.0,0.00016438,2]
[369582957,1751629845559,-810.49,0.00016438,2]
[369582959,1751629845568,-460.0,0.00016438,2]
[369582961,1751629845578,-2944.18,0.00016438,2]
[369582963,1751629845588,-460.0,0.00016438,2]
[369582965,1751629845598,-696.89,0.00016438,2]
[369582968,1751629845607,-356.29554358,0.00016438,2]
[369582969,1751629845617,-1465.35,0.00016438,2]
[369582971,1751629845627,-2867.4,0.00016438,2]
[369582973,1751629845637,-460.0,0.00016438,2]
[369582975,1751629845646,-1262.05,0.00016438,2]
[369582977,1751629845655,-1241.85,0.00016438,2]
[369582979,1751629845665,-460.0,0.00016438,2]
[369582981,1751629845674,-679.4,0.00016438,2]
[369582983,1751629845684,-3205.93,0.00016438,2]
[369582985,1751629845693,-697.81,0.00016438,2]
[369582987,1751629845702,-460.0,0.00016438,2]
[369582990,1751629845720,-4333.92,0.00016438,2]
[369582992,1751629845732,-460.0,0.00016438,2]
[369582994,1751629845742,-460.0,0.00016438,2]
[369582996,1751629845752,-845.22,0.00016438,2]
[369582998,1751629845762,-460.0,0.00016438,2]
[369583000,1751629845771,-460.0,0.00016438,2]
[369583002,1751629845781,-768.51,0.00016438,2]
[369583004,1751629845791,-460.0,0.00016438,2]
[369583006,1751629845801,-4370.14,0.00016438,2]
[369583008,1751629845810,-646.68,0.00016438,2]
[369583010,1751629845820,-151.0,0.00016438,2]
[369583012,1751629845829,-460.0,0.00016438,2]
[369583014,1751629845839,-660.06,0.00016438,2]
[369583016,1751629845849,-460.0,0.00016438,2]
[369583019,1751629845860,-1620.84,0.00016438,2]
[369583020,1751629845870,-993.62,0.00016438,2]
[369583021,1751629845881,-1890.58,0.00016438,2]
[369583022,1751629845892,-4631.35,0.00016438,2]
[369583023,1751629845902,-656.13,0.00016438,2]
[369583024,1751629845916,-471.23883047,0.00016438,2]
[369583025,1751629845926,-460.0,0.00016438,2]
[369583026,1751629845938,-742.91,0.00016438,2]
[369583027,1751629845949,-460.0,0.00016438,2]
[369583028,1751629845959,-2212.09,0.00016438,2]
[369583029,1751629845971,-460.0,0.00016438,2]
[369583030,1751629845980,-1315.96,0.00016438,2]
[369583031,1751629845992,-460.0,0.00016438,2]
[369583032,1751629846002,-460.0,0.00016438,2]